bitfinex/quotes_SOLUSD_20251115
["timestamp","ask_amount","ask_price","bid_price","bid_amount"]
[1763175574444,0.68,143.27,143.24,3.61362976]
[1763175574652,104.98,143.29,143.25,3.61362976]
[1763175574849,104.3,143.29,143.25,2.93362976]
[1763175575066,0.68,143.28,143.25,2.93362976]
[1763175575657,104.3,143.29,143.26,2.93362976]
[1763175575658,0.68,143.29,143.26,2.93362976]
[1763175576355,0.68,143.29,143.26,3.61362976]
[1763175577262,0.68,143.29,143.26,2.93362976]
[1763175579578,3.61362976,143.29,143.24,2.93362976]
[1763175579749,22.6512,143.31,143.27,2.93362976]
[1763175579954,0.2,143.35,143.3,5.86725952]
[1763175580153,0.2,143.35,143.34,2.93362976]
[1763175580870,0.2,143.35,143.3,2.93362976]
[1763175580871,0.88,143.35,143.32,2.93362976]
[1763175581480,0.68,143.34,143.3,2.93362976]
[1763175581656,0.68,143.34,143.31,2.93362976]
[1763175583376,0.68,143.34,143.32,2.93362976]
[1763175584552,0.68,143.34,143.31,2.93362976]
[1763175584980,0.68,143.34,143.28,23.3112]
[1763175585183,0.68,143.34,143.29,2.93362976]
[1763175585556,0.68,143.34,143.3,2.93362976]
[1763175586478,0.68,143.34,143.32,2.93362976]
[1763175586479,0.67,143.34,143.32,2.93362976]
[1763175586661,0.67,143.34,143.31,2.93362976]
[1763175586858,0.67,143.34,143.3,0.66]
[1763175587060,0.67,143.34,143.31,2.93362976]
[1763175587262,0.67,143.34,143.3,2.93362976]
[1763175587463,0.67,143.34,143.28,23.3112]
[1763175587665,0.67,143.34,143.3,2.93362976]
[1763175588181,0.2,143.35,143.32,2.93362976]
[1763175588754,0.87,143.35,143.33,2.93362976]
[1763175588973,22.6512,143.34,143.33,2.93362976]
[1763175589174,22.6512,143.33,143.32,2.93362976]
[1763175589761,0.87,143.35,143.32,2.93362976]
[1763175589971,22.6512,143.33,143.3,2.93362976]
[1763175590661,22.6512,143.33,143.31,0.66]
[1763175591081,22.6512,143.33,143.32,2.93362976]
[1763175591478,22.8512,143.35,143.32,2.93362976]
[1763175591673,0.2,143.35,143.33,3.59362976]
[1763175591983,0.2,143.35,143.32,3.59362976]
[1763175591984,22.8512,143.35,143.32,3.59362976]
[1763175592190,9.78882769,143.34,143.29,0.66]
[1763175592374,10.45882769,143.34,143.29,3.59362976]
[1763175592578,0.67,143.33,143.29,3.59362976]
[1763175592775,0.67,143.33,143.3,2.93362976]
[1763175593791,0.67,143.33,143.26,0.66]
[1763175593997,0.67,143.33,143.29,2.93362976]
[1763175594979,0.67,143.33,143.29,3.59362976]
[1763175597365,32.44002769,143.34,143.3,3.59362976]
[1763175597600,0.2,143.35,143.33,2.93362976]
[1763175597809,0.2,143.35,143.34,2.93362976]
[1763175598101,10.65882769,143.35,143.3,3.59362976]
[1763175598306,10.65882769,143.35,143.3,2.93362976]
[1763175598464,0.67,143.34,143.31,2.93362976]
[1763175598670,0.87,143.35,143.32,2.93362976]
[1763175598875,0.2,143.35,143.33,2.93362976]
[1763175599090,0.67,143.34,143.32,2.93362976]
[1763175599383,0.87,143.35,143.32,2.93362976]
[1763175600003,0.67,143.34,143.28,22.6512]
[1763175600214,0.67,143.34,143.3,0.66]
[1763175600417,9.78882769,143.33,143.28,3.59362976]
[1763175600720,9.78882769,143.31,143.25,3.59362976]
[1763175600900,12.72245745,143.31,143.25,3.59362976]
[1763175601082,12.72245745,143.31,143.26,0.66]
[1763175601083,0.67,143.3,143.26,0.66]
[1763175601282,3.60362976,143.3,143.25,0.66]
[1763175601487,3.60362976,143.3,143.25,3.59362976]
[1763175601818,0.67,143.3,143.25,3.59362976]
[1763175602019,0.67,143.29,143.25,3.59362976]
[1763175602318,2.93362976,143.27,143.21,0.66]
[1763175602496,50.0,143.28,143.19,3.59362976]
[1763175602820,50.0,143.28,143.17,0.66]
[1763175602821,2.93362976,143.25,143.17,0.66]
[1763175603006,2.93362976,143.25,143.19,2.93362976]
[1763175603212,10.45882769,143.25,143.2,2.93362976]
[1763175603399,10.45882769,143.25,143.21,3.59362976]
[1763175603742,12.72245745,143.23,143.14,0.14216157]
[1763175604024,12.72245745,143.23,143.18,2.93362976]
[1763175604206,0.67,143.22,143.17,3.59362976]
[1763175604394,0.67,143.22,143.18,2.93362976]
[1763175604596,0.67,143.22,143.18,3.59362976]
[1763175604804,0.67,143.22,143.18,0.66]
[1763175604995,0.67,143.22,143.18,3.59362976]
[1763175605416,9.78882769,143.23,143.19,3.59362976]
[1763175605592,3.60362976,143.24,143.19,3.59362976]
[1763175605795,0.67,143.23,143.19,3.59362976]
[1763175606228,2.93362976,143.25,143.2,0.66]
[1763175606439,9.78882769,143.25,143.21,2.93362976]
[1763175606587,0.67,143.24,143.2,0.66]
[1763175606896,9.78882769,143.25,143.21,0.66]
[1763175607097,3.60362976,143.26,143.21,3.59362976]
[1763175607308,0.67,143.25,143.21,0.66]
[1763175607740,0.67,143.25,143.2,2.93362976]
[1763175607902,9.78882769,143.22,143.18,2.93362976]
[1763175608214,0.67,143.21,143.16,2.93362976]
[1763175608541,13.39245745,143.21,143.12,0.14216157]
[1763175608693,13.39245745,143.21,143.15,0.66]
[1763175609017,12.33665396,143.21,143.16,1.87782627]
[1763175609398,0.67,143.2,143.16,2.53782627]
[1763175609596,1.87782627,143.22,143.17,2.53782627]
[1763175609800,0.67,143.26,143.2,1.87782627]
[1763175610008,0.67,143.26,143.15,30.16250508]
[1763175610009,0.67,143.26,143.22,1.87782627]
[1763175610215,2.54782627,143.28,143.23,1.87782627]
[1763175610427,0.67,143.28,143.23,1.87782627]
[1763175610629,0.69,143.3,143.24,2.54782627]
[1763175610828,4.69001229,143.28,143.22,5.36001229]
[1763175611031,22.6512,143.27,143.22,0.67]
[1763175611332,14.47883998,143.26,143.2,0.67]
[1763175611630,5.38001229,143.25,143.2,5.36001229]
[1763175611807,5.38001229,143.25,143.19,27.34121229]
[1763175611808,4.69001229,143.24,143.19,27.34121229]
[1763175612127,5.38001229,143.24,143.19,0.67]
[1763175612313,4.69001229,143.24,143.17,22.79336157]
[1763175612526,0.69,143.23,143.19,4.69001229]
[1763175612828,0.69,143.23,143.18,4.69001229]
[1763175613030,5.38001229,143.23,143.18,5.37001229]
[1763175613333,0.69,143.23,143.19,5.37001229]
[1763175613537,4.69001229,143.25,143.19,5.37001229]
[1763175613839,0.67,143.25,143.21,4.69001229]
[1763175614007,9.78882769,143.3,143.24,4.69001229]
[1763175614207,5.36001229,143.3,143.25,5.37001229]
[1763175614417,0.67,143.3,143.26,4.69001229]
[1763175614638,5.36001229,143.32,143.26,0.68]
[1763175614808,5.36001229,143.32,143.27,4.69001229]
[1763175615135,16.78,143.33,143.28,4.69001229]
[1763175615302,22.14001229,143.33,143.28,4.69001229]
[1763175615502,5.36001229,143.32,143.26,23.3312]
[1763175615733,10.45882769,143.31,143.24,4.69001229]
[1763175616028,15.14883998,143.31,143.24,0.68]
[1763175616215,5.36001229,143.3,143.25,4.69001229]
[1763175616611,0.67,143.29,143.25,5.37001229]
[1763175617421,0.67,143.29,143.17,1.99999999]
[1763175617422,4.69001229,143.27,143.2,0.68]
[1763175617628,9.78882769,143.25,143.2,0.68]
[1763175617931,14.47883998,143.25,143.19,4.69001229]
[1763175618139,0.67,143.24,143.19,4.69001229]
[1763175618504,0.67,143.24,143.19,5.37001229]
[1763175618909,5.36001229,143.24,143.19,5.37001229]
[1763175619117,5.36001229,143.24,143.17,4.69001229]
[1763175619118,14.47883998,143.23,143.17,4.69001229]
[1763175619319,15.14883998,143.23,143.17,4.69001229]
[1763175619528,0.67,143.22,143.16,0.68]
[1763175619735,0.67,143.22,143.17,4.69001229]
[1763175620229,0.67,143.22,143.17,5.37001229]
[1763175620407,9.78882769,143.23,143.18,0.68]
[1763175620612,5.36001229,143.22,143.17,4.69001229]
[1763175621033,5.36001229,143.22,143.17,0.68]
[1763175621333,15.14883998,143.21,143.16,4.69001229]
[1763175621712,15.14883998,143.21,143.16,5.37001229]
[1763175622329,14.47883998,143.22,143.17,5.37001229]
[1763175622726,0.67,143.24,143.19,4.69001229]
[1763175622932,15.14883998,143.24,143.18,5.37001229]
[1763175623240,50.0,143.29,143.2,4.69001229]
[1763175623419,14.47883998,143.25,143.2,4.69001229]
[1763175623743,14.47883998,143.25,143.19,0.68]
[1763175623744,14.47883998,143.25,143.19,5.37001229]
[1763175623915,15.14883998,143.25,143.2,4.69001229]
[1763175624342,0.67,143.24,143.2,5.37001229]
[1763175625583,4.69001229,143.23,143.17,0.68]
[1763175625875,5.36001229,143.23,143.18,4.69001229]
[1763175626244,4.69001229,143.24,143.19,0.68]
[1763175626576,4.69001229,143.24,143.19,5.37001229]
[1763175626577,0.67,143.23,143.19,5.37001229]
[1763175627373,10.45882769,143.25,143.2,5.37001229]
[1763175627775,10.45882769,143.25,143.18,0.68]
[1763175627776,0.67,143.24,143.18,0.68]
[1763175627946,5.36001229,143.24,143.18,5.37001229]
[1763175628374,5.36001229,143.24,143.19,4.69001229]
[1763175628554,5.36001229,143.24,143.16,27.48337386]
[1763175628555,15.14883998,143.23,143.17,4.69001229]
[1763175628883,4.69001229,143.22,143.16,5.37001229]
[1763175629112,5.36001229,143.21,143.16,5.37001229]
[1763175629568,14.47883998,143.19,143.13,0.68]
[1763175629747,14.47883998,143.19,143.13,23.3312]
[1763175629948,15.14883998,143.19,143.14,4.69001229]
[1763175630382,0.67,143.18,143.14,5.37001229]
[1763175630565,0.67,143.18,143.14,0.68]
[1763175631005,9.78882769,143.17,143.12,4.69001229]
[1763175631296,9.78882769,143.17,143.1,0.14216157]
[1763175631297,4.69001229,143.15,143.1,4.69001229]
[1763175631497,4.69001229,143.14,143.09,5.37001229]
[1763175632002,5.36001229,143.14,143.1,0.68]
[1763175632703,5.36001229,143.13,143.08,4.69001229]
[1763175632916,5.36001229,143.13,143.08,5.37001229]
[1763175633076,5.36001229,143.13,143.09,0.68]
[1763175633469,5.36001229,143.13,143.09,5.37001229]
[1763175633470,0.67,143.13,143.09,5.37001229]
[1763175634088,4.69001229,143.15,143.1,5.37001229]
[1763175634485,4.69001229,143.17,143.12,4.69001229]
[1763175634893,5.36001229,143.17,143.13,0.68]
[1763175635272,0.67,143.17,143.13,0.68]
[1763175636816,4.69001229,143.18,143.13,0.68]
[1763175636984,50.0,143.2,143.13,5.37001229]
[1763175636985,0.67,143.2,143.13,5.37001229]
[1763175637182,9.78882769,143.21,143.15,4.69001229]
[1763175637488,9.78882769,143.21,143.12,22.79336157]
[1763175637489,4.69001229,143.18,143.12,22.6512]
[1763175637719,4.69001229,143.18,143.13,4.69001229]
[1763175637891,5.36001229,143.19,143.14,4.69001229]
[1763175638223,5.36001229,143.2,143.15,4.69001229]
[1763175638603,0.67,143.19,143.15,4.69001229]
[1763175638793,0.67,143.19,143.15,5.37001229]
[1763175639183,114.75882769,143.21,143.15,4.69001229]
[1763175639519,108.99001229,143.21,143.16,5.37001229]
[1763175639687,104.3,143.21,143.17,5.37001229]
[1763175639879,0.67,143.2,143.14,23.3312]
[1763175640112,104.3,143.21,143.16,4.69001229]
[1763175640636,104.97,143.21,143.16,5.37001229]
[1763175640807,104.97,143.21,143.17,0.68]
[1763175641005,104.3,143.21,143.16,27.34121229]
[1763175641209,5.36001229,143.2,143.15,22.6512]
[1763175641707,0.67,143.2,143.15,28.02121229]
[1763175641901,5.36001229,143.2,143.15,28.02121229]
[1763175642443,0.67,143.2,143.15,28.02121229]
[1763175642932,0.67,143.2,143.15,28.06121229]
[1763175643522,0.67,143.2,143.15,27.34121229]
[1763175643721,0.67,143.2,143.15,28.06121229]
[1763175644042,5.36001229,143.2,143.15,23.3712]
[1763175644407,5.36001229,143.2,143.15,28.06121229]
[1763175644408,4.69001229,143.2,143.15,28.06121229]
[1763175644610,0.69,143.19,143.15,23.3712]
[1763175646823,0.69,143.19,143.15,28.06121229]
[1763175647648,108.99001229,143.21,143.16,0.72]
[1763175647957,0.69,143.24,143.17,4.69001229]
[1763175648177,104.3,143.26,143.19,27.34121229]
[1763175648178,114.08882769,143.26,143.19,27.34121229]
[1763175648330,5.38001229,143.25,143.19,27.34121229]
[1763175648532,5.38001229,143.25,143.2,0.72]
[1763175648948,5.38001229,143.25,143.2,5.41001229]
[1763175648949,0.69,143.25,143.2,5.41001229]
[1763175649126,109.78882769,143.29,143.2,5.41001229]
[1763175649127,0.69,143.27,143.2,5.41001229]
[1763175649328,5.38001229,143.27,143.21,5.41001229]
[1763175649744,5.38001229,143.26,143.21,0.72]
[1763175649945,0.69,143.26,143.21,5.41001229]
[1763175650447,0.69,143.26,143.22,0.72]
[1763175651124,0.69,143.26,143.21,5.41001229]
[1763175651330,5.38001229,143.26,143.21,0.72]
[1763175651737,0.69,143.25,143.21,0.72]
[1763175652253,5.38001229,143.27,143.21,5.41001229]
[1763175652441,4.69001229,143.26,143.21,0.72]
[1763175652622,5.38001229,143.26,143.21,0.72]
[1763175652828,4.69001229,143.26,143.21,0.72]
[1763175653049,0.69,143.25,143.21,0.72]
[1763175653226,5.38001229,143.26,143.21,0.72]
[1763175653430,72.6512,143.3,143.21,0.72]
[1763175653431,4.69001229,143.27,143.21,0.72]
[1763175653853,5.38001229,143.27,143.21,0.86216157]
[1763175654056,4.69001229,143.27,143.23,22.6512]
[1763175654232,4.69001229,143.28,143.24,0.72]
[1763175654558,4.69001229,143.29,143.24,0.72]
[1763175655044,5.38001229,143.3,143.24,5.41001229]
[1763175655240,4.69001229,143.31,143.27,22.6512]
[1763175655653,5.38001229,143.3,143.27,22.6512]
[1763175656054,0.69,143.3,143.27,22.6512]
[1763175656667,4.69001229,143.31,143.28,0.72]
[1763175657248,4.69001229,143.32,143.28,0.72]
[1763175658253,4.69001229,143.31,143.28,0.72]
[1763175658857,5.38001229,143.31,143.28,0.72]
[1763175659265,5.38001229,143.31,143.26,0.72]
[1763175659671,0.69,143.31,143.26,5.41001229]
[1763175660044,0.69,143.31,143.27,0.72]
[1763175660262,4.69001229,143.33,143.29,22.6512]
[1763175660449,4.69001229,143.33,143.3,22.6512]
[1763175661071,5.38001229,143.33,143.3,23.3712]
[1763175661248,4.89001229,143.34,143.3,22.6512]
[1763175661450,0.2,143.34,143.32,22.6512]
[1763175662167,0.2,143.34,143.33,0.72]
[1763175663360,0.2,143.34,143.33,28.20337386]
[1763175664072,0.2,143.34,143.33,0.86216157]
[1763175664648,0.2,143.34,143.32,4.69001229]
[1763175664649,0.2,143.34,143.31,22.6512]
[1763175664859,0.2,143.34,143.31,23.3712]
[1763175665079,4.69001229,143.32,143.19,6.98339506]
[1763175665374,0.69,143.33,143.26,0.72]
[1763175665375,4.69001229,143.3,143.26,0.72]
[1763175665680,5.38001229,143.32,143.27,0.14216157]
[1763175665853,4.69001229,143.3,143.24,0.72]
[1763175666046,4.69001229,143.28,143.24,0.72]
[1763175666252,4.69001229,143.29,143.24,23.3712]
[1763175666452,50.0,143.32,143.24,23.3712]
[1763175666453,4.69001229,143.3,143.25,0.14216157]
[1763175666651,4.69001229,143.31,143.25,5.55217386]
[1763175666952,4.69001229,143.31,143.26,4.69001229]
[1763175667258,5.58001229,143.34,143.29,22.6512]
[1763175667570,4.89001229,143.34,143.28,27.34121229]
[1763175667867,0.89,143.34,143.3,0.72]
[1763175668169,4.89001229,143.34,143.3,0.72]
[1763175668465,4.89001229,143.34,143.29,0.14216157]
[1763175668466,4.69001229,143.32,143.26,0.72]
[1763175668671,4.69001229,143.32,143.27,0.14216157]
[1763175668877,8.30652519,143.32,143.27,0.86216157]
[1763175669374,7.61652519,143.3,143.26,22.6512]
[1763175669756,7.61652519,143.28,143.22,0.72]
[1763175669948,0.69,143.29,143.2,0.72]
[1763175669949,7.61652519,143.26,143.2,0.72]
[1763175670153,7.61652519,143.24,143.19,0.86216157]
[1763175670352,7.61652519,143.23,143.19,0.72]
[1763175670566,8.33652519,143.26,143.2,7.61652519]
[1763175670875,0.72,143.26,143.21,8.27652519]
[1763175671957,8.33652519,143.26,143.21,0.80216157]
[1763175672581,8.33652519,143.25,143.21,0.72]
[1763175672950,8.33652519,143.25,143.2,22.6512]
[1763175673152,8.33652519,143.25,143.2,23.3712]
[1763175673463,8.32652519,143.24,143.2,23.3712]
[1763175673666,0.71,143.24,143.2,23.3712]
[1763175673873,7.61652519,143.25,143.2,23.3712]
[1763175674061,0.71,143.24,143.2,23.3712]
[1763175674263,0.71,143.28,143.21,8.47868676]
[1763175674460,7.61652519,143.27,143.21,8.47868676]
[1763175674788,7.61652519,143.28,143.23,22.79336157]
[1763175674952,0.71,143.3,143.24,0.72]
[1763175675153,7.61652519,143.29,143.24,0.72]
[1763175675651,8.32652519,143.29,143.24,0.72]
[1763175676056,8.32652519,143.28,143.24,0.72]
[1763175676383,7.61652519,143.26,143.22,22.6512]
[1763175676579,7.61652519,143.25,143.22,22.6512]
[1763175676964,0.71,143.24,143.22,22.6512]
[1763175677164,0.71,143.24,143.19,0.86216157]
[1763175677165,8.32652519,143.24,143.19,0.86216157]
[1763175677474,8.32652519,143.24,143.2,22.6512]
[1763175677785,107.61652519,143.29,143.17,0.72]
[1763175677786,8.32652519,143.23,143.17,0.72]
[1763175677962,8.32652519,143.23,143.17,0.86216157]
[1763175677963,7.61652519,143.22,143.17,0.86216157]
[1763175678291,7.61652519,143.24,143.19,22.6512]
[1763175678868,7.61652519,143.22,143.19,22.6512]
[1763175679265,8.32652519,143.23,143.19,22.6512]
[1763175679771,7.61652519,143.25,143.2,0.72]
[1763175680158,9.78882769,143.28,143.2,0.72]
[1763175680159,8.32652519,143.28,143.22,0.14216157]
[1763175680359,7.61652519,143.29,143.24,22.6512]
[1763175680884,8.32652519,143.29,143.24,23.3712]
[1763175681178,0.71,143.28,143.24,22.6512]
[1763175681478,8.32652519,143.28,143.24,22.6512]
[1763175682055,0.71,143.28,143.24,0.72]
[1763175682765,8.32652519,143.28,143.24,0.72]
[1763175683481,7.61652519,143.29,143.24,0.72]
[1763175683856,0.71,143.28,143.23,22.6512]
[1763175684080,8.32652519,143.28,143.23,22.6512]
[1763175684251,8.32652519,143.28,143.23,23.3712]
[1763175684464,0.71,143.27,143.23,23.3712]
[1763175684858,7.61652519,143.28,143.23,22.6512]
[1763175685059,8.32652519,143.28,143.24,0.72]
[1763175686106,7.61652519,143.29,143.24,0.86216157]
[1763175686416,104.3,143.32,143.26,22.6512]
[1763175686417,7.61652519,143.31,143.26,22.6512]
[1763175686728,7.61652519,143.31,143.24,31.12988676]
[1763175686898,7.61652519,143.31,143.25,0.86216157]
[1763175687716,7.61652519,143.31,143.25,8.47868676]
[1763175687894,8.32652519,143.32,143.26,0.72]
[1763175688104,8.32652519,143.32,143.26,0.86216157]
[1763175689299,8.32652519,143.32,143.26,8.47868676]
[1763175689499,8.32652519,143.32,143.27,22.6512]
[1763175689694,8.32652519,143.32,143.27,23.51336157]
[1763175689892,0.71,143.31,143.27,22.6512]
[1763175690195,7.61652519,143.32,143.27,22.6512]
[1763175690388,7.61652519,143.33,143.28,0.72]
[1763175690596,0.2,143.34,143.27,22.6512]
[1763175690597,8.32652519,143.32,143.27,22.6512]
[1763175691104,8.32652519,143.32,143.27,23.3712]
[1763175691302,7.61652519,143.32,143.27,23.3712]
[1763175691617,8.32652519,143.31,143.27,23.3712]
[1763175692089,7.61652519,143.32,143.28,0.72]
[1763175692286,8.32652519,143.33,143.28,0.72]
[1763175692491,0.71,143.32,143.28,0.72]
[1763175693209,0.2,143.34,143.29,7.61652519]
[1763175693533,0.91,143.34,143.3,0.72]
[1763175693910,0.2,143.34,143.3,8.33652519]
[1763175694110,0.2,143.34,143.31,0.72]
[1763175694313,0.2,143.34,143.31,8.33652519]
[1763175694731,0.2,143.34,143.32,8.33652519]
[1763175694921,0.2,143.34,143.33,7.75868676]
[1763175695123,0.2,143.34,143.33,8.47868676]
[1763175697441,0.2,143.34,143.33,18.26751445]
[1763175697815,0.2,143.34,143.33,40.91871445]
[1763175698134,0.2,143.37,143.35,22.6512]
[1763175698334,50.0,143.48,143.39,30.40988676]
[1763175698335,0.71,143.44,143.39,30.40988676]
[1763175698514,7.61652519,143.46,143.39,30.40988676]
[1763175698720,8.32652519,143.46,143.39,30.89988676]
[1763175699040,0.71,143.46,143.39,40.68871445]
[1763175699226,7.61652519,143.47,143.39,18.03751445]
[1763175699227,8.32652519,143.47,143.39,18.03751445]
[1763175699422,22.6512,143.46,143.39,18.03751445]
[1763175699822,0.71,143.45,143.39,18.03751445]
[1763175700708,0.71,143.43,143.39,0.14216157]
[1763175700911,0.71,143.43,143.37,0.49]
[1763175701133,0.71,143.43,143.39,7.61652519]
[1763175702213,7.61652519,143.44,143.32,0.49]
[1763175702214,0.91,143.4,143.32,0.49]
[1763175702426,0.71,143.39,143.36,7.61652519]
[1763175702609,0.2,143.4,143.37,7.61652519]
[1763175702815,0.2,143.4,143.35,0.14216157]
[1763175702816,0.86,143.4,143.35,0.14216157]
[1763175703051,8.47652519,143.4,143.35,7.61652519]
[1763175703225,0.66,143.39,143.36,7.61652519]
[1763175703430,0.2,143.4,143.37,0.49]
[1763175703729,0.2,143.4,143.39,17.54751445]
[1763175704222,0.2,143.4,143.39,18.03751445]
[1763175705045,0.2,143.4,143.39,40.68871445]
[1763175707545,0.2,143.4,143.39,40.19871445]
[1763175708526,0.2,143.4,143.39,22.79336157]
[1763175708746,0.2,143.4,143.39,7.75868676]
[1763175709351,0.2,143.4,143.39,7.61652519]
[1763175710931,0.2,143.4,143.36,0.63216157]
[1763175711130,0.2,143.4,143.39,7.61652519]
[1763175711347,0.86,143.4,143.39,7.61652519]
[1763175711546,0.86,143.4,143.38,7.61652519]
[1763175712225,0.2,143.4,143.38,7.61652519]
[1763175712637,0.86,143.4,143.38,7.61652519]
[1763175713039,0.66,143.39,143.31,0.14216157]
[1763175713237,0.66,143.39,143.35,7.61652519]
[1763175713446,0.66,143.39,143.32,9.78882769]
[1763175713637,0.66,143.39,143.35,7.61652519]
[1763175714750,0.2,143.4,143.37,7.61652519]
[1763175714951,0.66,143.39,143.37,7.61652519]
[1763175715447,0.2,143.4,143.35,0.14216157]
[1763175715448,0.2,143.4,143.38,7.61652519]
[1763175715829,0.86,143.4,143.37,7.61652519]
[1763175716544,0.66,143.39,143.37,7.61652519]
[1763175717148,0.2,143.4,143.38,7.61652519]
[1763175717330,0.86,143.4,143.38,7.61652519]
[1763175717847,0.86,143.4,143.38,0.14216157]
[1763175718046,0.86,143.4,143.38,7.75868676]
[1763175718234,0.2,143.4,143.38,7.75868676]
[1763175718437,0.2,143.4,143.39,7.75868676]
[1763175720642,0.86,143.4,143.39,7.75868676]
[1763175720839,0.86,143.4,143.37,7.61652519]
[1763175721045,0.86,143.4,143.36,0.14216157]
[1763175721046,0.2,143.4,143.39,7.61652519]
[1763175721232,0.86,143.4,143.39,7.61652519]
[1763175721571,0.86,143.4,143.38,0.14216157]
[1763175721732,0.86,143.4,143.39,7.75868676]
[1763175721939,0.2,143.4,143.39,7.75868676]
[1763175722661,0.86,143.4,143.38,7.61652519]
[1763175723744,0.2,143.4,143.39,7.75868676]
[1763175726635,0.2,143.4,143.39,17.54751445]
[1763175728873,0.2,143.4,143.39,18.03751445]
[1763175730884,0.2,143.4,143.39,19.7742881]
[1763175731963,0.2,143.4,143.39,15.09763868]
[1763175732581,0.2,143.4,143.39,14.60763868]
[1763175733152,0.2,143.4,143.39,15.09763868]
[1763175734357,0.68,143.49,143.43,22.6512]
[1763175734558,0.2,143.55,143.37,0.49]
[1763175734559,4.67664942,143.47,143.37,0.49]
[1763175734767,4.67664942,143.47,143.42,0.14216157]
[1763175735078,0.68,143.46,143.42,0.14216157]
[1763175736074,0.68,143.46,143.4,0.14216157]
[1763175736283,5.35664942,143.46,143.41,4.67664942]
[1763175736473,4.67664942,143.45,143.4,4.67664942]
[1763175736793,0.68,143.45,143.4,4.67664942]
[1763175736989,0.68,143.44,143.4,4.67664942]
[1763175737663,5.35664942,143.44,143.39,4.81881099]
[1763175738067,0.68,143.43,143.39,4.81881099]
[1763175738598,0.68,143.43,143.34,0.49]
[1763175738801,4.67664942,143.42,143.37,4.67664942]
[1763175738971,0.68,143.41,143.37,1.87215773]
[1763175739293,0.68,143.41,143.38,1.87215773]
[1763175739786,0.68,143.44,143.41,0.14216157]
[1763175740087,0.68,143.44,143.42,1.87215773]
[1763175740385,0.68,143.44,143.43,1.87215773]
[1763175740561,0.68,143.44,143.43,2.0143193]
[1763175740765,0.68,143.47,143.44,0.14216157]
[1763175741086,4.67484305,143.52,143.46,4.67484305]
[1763175741291,5.35484305,143.53,143.47,4.67484305]
[1763175741486,22.6512,143.51,143.47,4.67484305]
[1763175741695,0.68,143.52,143.48,4.67484305]
[1763175741897,4.67484305,143.49,143.43,0.14216157]
[1763175742072,27.32604305,143.49,143.43,4.81700462]
[1763175742273,0.68,143.48,143.44,4.67484305]
[1763175742468,0.68,143.48,143.43,4.67484305]
[1763175742668,5.35484305,143.48,143.43,4.67484305]
[1763175743173,0.68,143.47,143.43,4.67484305]
[1763175743375,0.68,143.47,143.44,4.67484305]
[1763175745295,5.35484305,143.47,143.41,4.81700462]
[1763175745609,5.35484305,143.47,143.41,4.67484305]
[1763175745610,4.67484305,143.46,143.41,4.67484305]
[1763175745783,0.68,143.45,143.41,4.67484305]
[1763175746495,5.35484305,143.45,143.4,4.67484305]
[1763175746701,5.35484305,143.45,143.39,4.67484305]
[1763175746901,0.68,143.44,143.39,4.67484305]
[1763175747120,5.35484305,143.44,143.38,4.67484305]
[1763175747289,4.67484305,143.43,143.38,4.67484305]
[1763175747487,4.67484305,143.42,143.37,4.67484305]
[1763175747709,5.35484305,143.42,143.37,4.67484305]
[1763175747918,5.35484305,143.41,143.36,4.67484305]
[1763175748138,0.68,143.4,143.36,4.67484305]
[1763175748417,5.35484305,143.4,143.35,4.67484305]
[1763175748624,0.68,143.39,143.35,4.67484305]
[1763175748812,0.68,143.39,143.36,4.67484305]
[1763175748996,0.68,143.39,143.35,4.67484305]
[1763175749930,4.67484305,143.38,143.33,4.67484305]
[1763175750219,0.68,143.39,143.31,4.81700462]
[1763175750220,4.67484305,143.36,143.31,4.81700462]
[1763175750391,4.67484305,143.36,143.31,0.14216157]
[1763175750586,22.6512,143.37,143.3,4.67484305]
[1763175750587,5.35484305,143.35,143.3,4.67484305]
[1763175751121,22.6512,143.37,143.29,4.67484305]